[Event "Titled Tuesday Blitz November 01 Early 2022"]
[White "Espinosa Aranda, Angel"]
[Black "Deac, Bogdan-Daniel"]
[WhiteFideId "2278189"]
[BlackFideId "1226380"]
[WhiteElo "2478"]
[BlackElo "2648"]
[Result "0-1"]
[Round "03"]
[TimeControl "180+1"]
[Date "2022.11.01"]
[WhiteClock "0:00:19"]
[BlackClock "0:00:04"]

1. e4 {[%clk 0:03:00]}  c6 {[%clk 0:02:51]} 2. d4 {[%clk 0:02:58]}  d5 {[%clk 0:02:51]} 3. exd5 {[%clk 0:02:59]}  cxd5 {[%clk 0:02:51]} 4. c4 {[%clk 0:03:00]}  Nf6 {[%clk 0:02:51]} 5. Nc3 {[%clk 0:03:00]}  e6 {[%clk 0:02:51]} 6. Nf3 {[%clk 0:02:59]}  Bb4 {[%clk 0:02:50]} 7. cxd5 {[%clk 0:02:58]}  Nxd5 {[%clk 0:02:51]} 8. Qc2 {[%clk 0:02:57]}  Bd7 {[%clk 0:02:51]} 9. Bd3 {[%clk 0:02:50]}  Bc6 {[%clk 0:02:51]} 10. O-O {[%clk 0:02:30]}  Nd7 {[%clk 0:02:45]} 11. Ng5 {[%clk 0:02:26]}  N7f6 {[%clk 0:02:36]} 12. Re1 {[%clk 0:02:19]}  h6 {[%clk 0:02:30]} 13. Nge4 {[%clk 0:02:00]}  Be7 {[%clk 0:02:22]} 14. Qe2 {[%clk 0:01:50]}  Nb4 {[%clk 0:02:03]} 15. Be3 {[%clk 0:01:34]}  Nxd3 {[%clk 0:01:54]} 16. Qxd3 {[%clk 0:01:35]}  Nxe4 {[%clk 0:01:46]} 17. Nxe4 {[%clk 0:01:34]}  Qd5 {[%clk 0:01:45]} 18. f3 {[%clk 0:01:34]}  O-O {[%clk 0:01:42]} 19. Nc3 {[%clk 0:01:34]}  Qh5 {[%clk 0:01:38]} 20. d5 {[%clk 0:01:31]}  Rfd8 {[%clk 0:01:31]} 21. Rac1 {[%clk 0:01:18]}  Bxd5 {[%clk 0:01:17]} 22. Nxd5 {[%clk 0:01:18]}  Rxd5 {[%clk 0:01:18]} 23. Qe2 {[%clk 0:01:18]}  Bd6 {[%clk 0:00:57]} 24. f4 {[%clk 0:01:18]}  Qxe2 {[%clk 0:00:45]} 25. Rxe2 {[%clk 0:01:19]}  Kf8 {[%clk 0:00:45]} 26. Kf2 {[%clk 0:01:19]}  b6 {[%clk 0:00:40]} 27. Kf3 {[%clk 0:01:18]}  Rd8 {[%clk 0:00:37]} 28. Rec2 {[%clk 0:01:17]}  h5 {[%clk 0:00:36]} 29. g3 {[%clk 0:01:17]}  Ke7 {[%clk 0:00:34]} 30. a4 {[%clk 0:01:16]}  g6 {[%clk 0:00:27]} 31. Rc4 {[%clk 0:01:16]}  Rd3 {[%clk 0:00:19]} 32. R1c3 {[%clk 0:01:10]}  Rxc3 {[%clk 0:00:18]} 33. Rxc3 {[%clk 0:01:11]}  Kd7 {[%clk 0:00:16]} 34. a5 {[%clk 0:01:04]}  bxa5 {[%clk 0:00:13]} 35. Bxa7 {[%clk 0:01:02]}  Ra8 {[%clk 0:00:13]} 36. Bd4 {[%clk 0:00:59]}  Rb8 {[%clk 0:00:10]} 37. Rd3 {[%clk 0:00:56]}  Ke7 {[%clk 0:00:06]} 38. Bc3 {[%clk 0:00:55]}  Rb5 {[%clk 0:00:06]} 39. Ke4 {[%clk 0:00:48]}  Bb4 {[%clk 0:00:05]} 40. Bd4 {[%clk 0:00:45]}  Rd5 {[%clk 0:00:04]} 41. h3 {[%clk 0:00:39]}  f5+ {[%clk 0:00:03]} 42. Ke3 {[%clk 0:00:35]}  Kd6 {[%clk 0:00:04]} 43. Be5+ {[%clk 0:00:34]}  Kc5 {[%clk 0:00:04]} 44. b3 {[%clk 0:00:30]}  Rxd3+ {[%clk 0:00:02]} 45. Kxd3 {[%clk 0:00:31]}  Be1 {[%clk 0:00:03]} 46. Bc7 {[%clk 0:00:20]}  Bxg3 {[%clk 0:00:03]} 47. Bxa5 {[%clk 0:00:19]}  Bxf4 {[%clk 0:00:03]} 48. Bd8 {[%clk 0:00:20]}  e5 {[%clk 0:00:03]} 49. Ke2 {[%clk 0:00:18]}  e4 {[%clk 0:00:03]} 50. Bf6 {[%clk 0:00:18]}  Kb4 {[%clk 0:00:03]} 51. Be7+ {[%clk 0:00:18]}  Kxb3 {[%clk 0:00:03]} 52. Bf8 {[%clk 0:00:18]}  Kc4 {[%clk 0:00:03]} 53. Be7 {[%clk 0:00:19]}  Kd5 {[%clk 0:00:04]} 54. Bf8 {[%clk 0:00:19]}  Ke6 {[%clk 0:00:05]} 55. Bh6 {[%clk 0:00:19]}  Bxh6 {[%clk 0:00:04]} 0-1


[Site "https://www.chess.com"]

[Event "Titled Tuesday Blitz November 01 Early 2022"]
[White "Faizrakhmanov, Ramil"]
[Black "Lazavik, Denis"]
[WhiteFideId "24103209"]
[BlackFideId "13515110"]
[WhiteElo "2421"]
[BlackElo "2437"]
[Result "1/2-1/2"]
[Round "03"]
[TimeControl "180+1"]
[Date "2022.11.01"]
[WhiteClock "0:00:16"]
[BlackClock "0:00:12"]

1. d4 {[%clk 0:03:00]}  f5 {[%clk 0:03:00]} 2. g3 {[%clk 0:03:00]}  Nf6 {[%clk 0:03:00]} 3. Bg2 {[%clk 0:03:00]}  g6 {[%clk 0:03:01]} 4. Nf3 {[%clk 0:03:01]}  Bg7 {[%clk 0:03:01]} 5. O-O {[%clk 0:03:01]}  O-O {[%clk 0:03:02]} 6. c4 {[%clk 0:03:02]}  d6 {[%clk 0:03:02]} 7. Nc3 {[%clk 0:03:02]}  c6 {[%clk 0:03:03]} 8. Rb1 {[%clk 0:02:54]}  a5 {[%clk 0:02:59]} 9. Qb3 {[%clk 0:02:52]}  Na6 {[%clk 0:02:57]} 10. Rd1 {[%clk 0:02:48]}  h6 {[%clk 0:02:52]} 11. a3 {[%clk 0:02:44]}  Kh7 {[%clk 0:02:48]} 12. Qc2 {[%clk 0:02:43]}  Qe8 {[%clk 0:02:46]} 13. d5 {[%clk 0:02:40]}  cxd5 {[%clk 0:02:35]} 14. cxd5 {[%clk 0:02:41]}  Bd7 {[%clk 0:02:35]} 15. Nd4 {[%clk 0:02:38]}  Rc8 {[%clk 0:02:32]} 16. Ne6 {[%clk 0:02:30]}  Bxe6 {[%clk 0:02:32]} 17. dxe6 {[%clk 0:02:31]}  Nc5 {[%clk 0:02:30]} 18. Be3 {[%clk 0:02:27]}  b5 {[%clk 0:02:20]} 19. Qd2 {[%clk 0:02:21]}  Nxe6 {[%clk 0:02:14]} 20. Nd5 {[%clk 0:02:20]}  a4 {[%clk 0:02:06]} 21. Nxf6+ {[%clk 0:02:11]}  Rxf6 {[%clk 0:02:07]} 22. Rbc1 {[%clk 0:02:09]}  Nc5 {[%clk 0:02:04]} 23. Qb4 {[%clk 0:02:02]}  Re6 {[%clk 0:01:53]} 24. Bd5 {[%clk 0:01:36]}  Rxe3 {[%clk 0:01:42]} 25. fxe3 {[%clk 0:01:37]}  Be5 {[%clk 0:01:35]} 26. Bf3 {[%clk 0:01:30]}  Kg7 {[%clk 0:01:33]} 27. Rd5 {[%clk 0:01:27]}  Bf6 {[%clk 0:01:27]} 28. Kg2 {[%clk 0:01:18]}  Rb8 {[%clk 0:01:19]} 29. Rdxc5 {[%clk 0:01:10]}  dxc5 {[%clk 0:01:19]} 30. Rxc5 {[%clk 0:01:11]}  Qd7 {[%clk 0:01:10]} 31. Rd5 {[%clk 0:01:09]}  Qe6 {[%clk 0:01:01]} 32. e4 {[%clk 0:01:03]}  fxe4 {[%clk 0:00:54]} 33. Bxe4 {[%clk 0:01:04]}  Qg4 {[%clk 0:00:37]} 34. Bd3 {[%clk 0:00:52]}  Qe6 {[%clk 0:00:33]} 35. Rxb5 {[%clk 0:00:43]}  Qc6+ {[%clk 0:00:31]} 36. Kh3 {[%clk 0:00:30]}  Qd7+ {[%clk 0:00:15]} 37. Kg2 {[%clk 0:00:29]}  Qc6+ {[%clk 0:00:14]} 38. Kh3 {[%clk 0:00:29]}  Rxb5 {[%clk 0:00:13]} 39. Qxb5 {[%clk 0:00:29]}  Qh1 {[%clk 0:00:09]} 40. e3 {[%clk 0:00:19]}  Qd1 {[%clk 0:00:08]} 41. Qc4 {[%clk 0:00:18]}  Bxb2 {[%clk 0:00:02]} 42. Qe4 {[%clk 0:00:18]}  Qh5+ {[%clk 0:00:03]} 43. Kg2 {[%clk 0:00:18]}  Bf6 {[%clk 0:00:03]} 44. h4 {[%clk 0:00:17]}  Qf5 {[%clk 0:00:03]} 45. Qxf5 {[%clk 0:00:15]}  gxf5 {[%clk 0:00:04]} 46. Bxf5 {[%clk 0:00:15]}  Bb2 {[%clk 0:00:04]} 47. Bd7 {[%clk 0:00:15]}  Bxa3 {[%clk 0:00:05]} 48. Bxa4 {[%clk 0:00:16]}  Bc1 {[%clk 0:00:06]} 49. Kf3 {[%clk 0:00:16]}  Kf6 {[%clk 0:00:06]} 50. Bc2 {[%clk 0:00:15]}  Ba3 {[%clk 0:00:07]} 51. Kg4 {[%clk 0:00:15]}  Bb4 {[%clk 0:00:07]} 52. Kh5 {[%clk 0:00:15]}  Kg7 {[%clk 0:00:07]} 53. g4 {[%clk 0:00:15]}  Bd2 {[%clk 0:00:08]} 54. e4 {[%clk 0:00:15]}  Be3 {[%clk 0:00:08]} 55. e5 {[%clk 0:00:15]}  Bf4 {[%clk 0:00:09]} 56. e6 {[%clk 0:00:15]}  Be3 {[%clk 0:00:09]} 57. Bf5 {[%clk 0:00:15]}  Bf4 {[%clk 0:00:09]} 58. g5 {[%clk 0:00:15]}  hxg5 {[%clk 0:00:09]} 59. hxg5 {[%clk 0:00:16]}  Bd2 {[%clk 0:00:10]} 60. Kg4 {[%clk 0:00:16]}  Bc1 {[%clk 0:00:10]} 61. Kh5 {[%clk 0:00:16]}  Bd2 {[%clk 0:00:11]} 62. Kg4 {[%clk 0:00:16]}  Bc1 {[%clk 0:00:12]} 63. Kh5 {[%clk 0:00:16]}  Bd2 {[%clk 0:00:12]} 1/2-1/2


[Site "https://www.chess.com"]

[Event "Titled Tuesday Blitz November 01 Early 2022"]
[White "Goriatchkin, Jouri"]
[Black "Tarasova, Viktoriya"]
[WhiteFideId "4120183"]
[BlackFideId "4175840"]
[WhiteElo "1862"]
[BlackElo "2182"]
[Result "0-1"]
[Round "03"]
[TimeControl "180+1"]
[Date "2022.11.02"]
[WhiteClock "0:01:17"]
[BlackClock "0:01:28"]

1. d4 {[%clk 0:03:00]}  Nf6 {[%clk 0:02:59]} 2. c4 {[%clk 0:02:59]}  e6 {[%clk 0:02:59]} 3. Nf3 {[%clk 0:02:59]}  b6 {[%clk 0:02:57]} 4. g3 {[%clk 0:02:58]}  Ba6 {[%clk 0:02:56]} 5. Qc2 {[%clk 0:02:59]}  c5 {[%clk 0:02:53]} 6. Bg2 {[%clk 0:02:54]}  Bb7 {[%clk 0:02:53]} 7. d5 {[%clk 0:02:53]}  exd5 {[%clk 0:02:50]} 8. Nh4 {[%clk 0:02:50]}  Nc6 {[%clk 0:02:32]} 9. cxd5 {[%clk 0:02:25]}  Nb4 {[%clk 0:02:29]} 10. Qd2 {[%clk 0:02:24]}  Bxd5 {[%clk 0:02:23]} 11. Bxd5 {[%clk 0:02:04]}  Nbxd5 {[%clk 0:02:09]} 12. e4 {[%clk 0:01:17]}  Nb4 {[%clk 0:01:28]} 0-1


[Site "https://www.chess.com"]

[Event "Titled Tuesday Blitz November 01 Early 2022"]
[White "Goryachkina, Aleksandra"]
[Black "Donchenko, Alexander"]
[WhiteFideId "4147103"]
[BlackFideId "24603295"]
[WhiteElo "2484"]
[BlackElo "2572"]
[Result "1/2-1/2"]
[Round "03"]
[TimeControl "180+1"]
[Date "2022.11.02"]
[WhiteClock "0:00:10"]
[BlackClock "0:00:09"]

1. e4 {[%clk 0:02:59]}  c5 {[%clk 0:02:59]} 2. Nf3 {[%clk 0:02:59]}  e6 {[%clk 0:03:00]} 3. c3 {[%clk 0:02:58]}  d5 {[%clk 0:02:58]} 4. exd5 {[%clk 0:02:58]}  Qxd5 {[%clk 0:02:58]} 5. d4 {[%clk 0:02:58]}  Nf6 {[%clk 0:02:58]} 6. Na3 {[%clk 0:02:52]}  Be7 {[%clk 0:02:54]} 7. Nb5 {[%clk 0:02:40]}  Na6 {[%clk 0:02:54]} 8. Be2 {[%clk 0:02:28]}  O-O {[%clk 0:02:50]} 9. O-O {[%clk 0:02:28]}  Bd7 {[%clk 0:02:45]} 10. a4 {[%clk 0:02:25]}  Bc6 {[%clk 0:02:38]} 11. h3 {[%clk 0:02:17]}  Rfd8 {[%clk 0:02:33]} 12. Be3 {[%clk 0:02:15]}  cxd4 {[%clk 0:02:31]} 13. Nbxd4 {[%clk 0:02:13]}  Be8 {[%clk 0:02:13]} 14. Nb5 {[%clk 0:01:59]}  Bc5 {[%clk 0:02:05]} 15. Qc1 {[%clk 0:01:31]}  Qe4 {[%clk 0:01:39]} 16. Nfd4 {[%clk 0:01:01]}  Nd5 {[%clk 0:01:35]} 17. Bf3 {[%clk 0:00:57]}  Qg6 {[%clk 0:01:33]} 18. Bg5 {[%clk 0:00:32]}  Rd7 {[%clk 0:01:13]} 19. Rd1 {[%clk 0:00:22]}  h6 {[%clk 0:01:11]} 20. Bd2 {[%clk 0:00:22]}  Rc8 {[%clk 0:00:59]} 21. Qb1 {[%clk 0:00:21]}  Qxb1 {[%clk 0:00:47]} 22. Raxb1 {[%clk 0:00:22]}  Nac7 {[%clk 0:00:34]} 23. Nxc7 {[%clk 0:00:20]}  Rdxc7 {[%clk 0:00:29]} 24. Bxd5 {[%clk 0:00:20]}  exd5 {[%clk 0:00:29]} 25. a5 {[%clk 0:00:19]}  Ba4 {[%clk 0:00:20]} 26. Re1 {[%clk 0:00:19]}  Bxd4 {[%clk 0:00:17]} 27. cxd4 {[%clk 0:00:20]}  Rc2 {[%clk 0:00:18]} 28. Bc3 {[%clk 0:00:20]}  Kf8 {[%clk 0:00:15]} 29. Rbc1 {[%clk 0:00:14]}  Rxc1 {[%clk 0:00:15]} 30. Rxc1 {[%clk 0:00:14]}  Ke8 {[%clk 0:00:14]} 31. Re1+ {[%clk 0:00:14]}  Kd7 {[%clk 0:00:13]} 32. f3 {[%clk 0:00:13]}  Rc4 {[%clk 0:00:09]} 33. Kf2 {[%clk 0:00:11]}  Bb5 {[%clk 0:00:08]} 34. Ke3 {[%clk 0:00:11]}  Ra4 {[%clk 0:00:06]} 35. Kd2 {[%clk 0:00:11]}  Rc4 {[%clk 0:00:05]} 36. Ke3 {[%clk 0:00:11]}  Rc8 {[%clk 0:00:05]} 37. Kd2 {[%clk 0:00:11]}  Bc4 {[%clk 0:00:04]} 38. Bb4 {[%clk 0:00:11]}  Re8 {[%clk 0:00:04]} 39. Rxe8 {[%clk 0:00:10]}  Kxe8 {[%clk 0:00:05]} 40. Bc5 {[%clk 0:00:11]}  a6 {[%clk 0:00:06]} 41. Ke3 {[%clk 0:00:11]}  h5 {[%clk 0:00:05]} 42. h4 {[%clk 0:00:10]}  Kd7 {[%clk 0:00:05]} 43. g3 {[%clk 0:00:10]}  Ke6 {[%clk 0:00:05]} 44. Kf4 {[%clk 0:00:11]}  Be2 {[%clk 0:00:05]} 45. Bf8 {[%clk 0:00:10]}  g6 {[%clk 0:00:05]} 46. Bc5 {[%clk 0:00:11]}  Bd1 {[%clk 0:00:05]} 47. Bb6 {[%clk 0:00:09]}  Kd7 {[%clk 0:00:05]} 48. Bc5 {[%clk 0:00:09]}  Kc6 {[%clk 0:00:06]} 49. Ke3 {[%clk 0:00:08]}  Kb5 {[%clk 0:00:06]} 50. b4 {[%clk 0:00:08]}  Kc4 {[%clk 0:00:06]} 51. Bd6 {[%clk 0:00:08]}  Kc3 {[%clk 0:00:06]} 52. Be7 {[%clk 0:00:08]}  Kc2 {[%clk 0:00:06]} 53. Bd6 {[%clk 0:00:08]}  Kb3 {[%clk 0:00:06]} 54. Be7 {[%clk 0:00:08]}  Kc4 {[%clk 0:00:06]} 55. Bd6 {[%clk 0:00:08]}  Kb5 {[%clk 0:00:06]} 56. Be7 {[%clk 0:00:09]}  Kc6 {[%clk 0:00:07]} 57. Bc5 {[%clk 0:00:09]}  Kd7 {[%clk 0:00:08]} 58. Bb6 {[%clk 0:00:09]}  Ke6 {[%clk 0:00:08]} 59. Kf4 {[%clk 0:00:09]}  f6 {[%clk 0:00:08]} 60. Bd8 {[%clk 0:00:10]}  Kf7 {[%clk 0:00:08]} 61. Ke3 {[%clk 0:00:09]}  Kg7 {[%clk 0:00:08]} 62. Kf4 {[%clk 0:00:09]}  Kf7 {[%clk 0:00:09]} 63. Ke3 {[%clk 0:00:09]}  Ke6 {[%clk 0:00:09]} 64. Kf4 {[%clk 0:00:10]}  Kf7 {[%clk 0:00:09]} 1/2-1/2


[Site "https://www.chess.com"]

[Event "Titled Tuesday Blitz November 01 Early 2022"]
[White "Grandelius, Nils"]
[Black "Pakleza, Zbigniew"]
[WhiteFideId "1710400"]
[BlackFideId "1119290"]
[WhiteElo "2617"]
[BlackElo "2411"]
[Result "1-0"]
[Round "03"]
[TimeControl "180+1"]
[Date "2022.11.01"]
[WhiteClock "0:00:09"]
[BlackClock "0:00:03"]

1. Nf3 {[%clk 0:03:00]}  d5 {[%clk 0:03:00]} 2. e3 {[%clk 0:03:01]}  Nf6 {[%clk 0:03:00]} 3. c4 {[%clk 0:03:01]}  c6 {[%clk 0:03:00]} 4. Qc2 {[%clk 0:03:00]}  Bg4 {[%clk 0:02:57]} 5. Ne5 {[%clk 0:02:58]}  Bh5 {[%clk 0:02:49]} 6. cxd5 {[%clk 0:02:53]}  Nxd5 {[%clk 0:02:47]} 7. Nc3 {[%clk 0:02:45]}  e6 {[%clk 0:02:43]} 8. Nxd5 {[%clk 0:02:32]}  exd5 {[%clk 0:02:44]} 9. Qf5 {[%clk 0:02:28]}  Bg6 {[%clk 0:02:37]} 10. Qh3 {[%clk 0:02:28]}  Nd7 {[%clk 0:02:05]} 11. Nxg6 {[%clk 0:02:25]}  fxg6 {[%clk 0:02:06]} 12. Be2 {[%clk 0:02:21]}  Bd6 {[%clk 0:01:55]} 13. O-O {[%clk 0:02:20]}  Qe7 {[%clk 0:01:50]} 14. Rb1 {[%clk 0:01:37]}  O-O {[%clk 0:01:45]} 15. b4 {[%clk 0:01:35]}  a6 {[%clk 0:01:40]} 16. a4 {[%clk 0:01:35]}  b5 {[%clk 0:01:30]} 17. axb5 {[%clk 0:01:35]}  axb5 {[%clk 0:01:31]} 18. Bb2 {[%clk 0:01:27]}  Bxb4 {[%clk 0:01:05]} 19. Rfc1 {[%clk 0:01:26]}  Ra6 {[%clk 0:01:05]} 20. Rc2 {[%clk 0:00:50]}  Nf6 {[%clk 0:00:38]} 21. d3 {[%clk 0:00:47]}  c5 {[%clk 0:00:30]} 22. Bf3 {[%clk 0:00:48]}  Rd8 {[%clk 0:00:26]} 23. Qh4 {[%clk 0:00:44]}  c4 {[%clk 0:00:18]} 24. dxc4 {[%clk 0:00:41]}  dxc4 {[%clk 0:00:19]} 25. Bd4 {[%clk 0:00:37]}  Bc5 {[%clk 0:00:13]} 26. Bb2 {[%clk 0:00:28]}  h6 {[%clk 0:00:10]} 27. g3 {[%clk 0:00:20]}  g5 {[%clk 0:00:10]} 28. Qh3 {[%clk 0:00:21]}  Qd7 {[%clk 0:00:06]} 29. Qxd7 {[%clk 0:00:19]}  Rxd7 {[%clk 0:00:07]} 30. Bxf6 {[%clk 0:00:18]}  Rxf6 {[%clk 0:00:07]} 31. Bg4 {[%clk 0:00:18]}  Rb7 {[%clk 0:00:04]} 32. Rxc4 {[%clk 0:00:14]}  bxc4 {[%clk 0:00:05]} 33. Rxb7 {[%clk 0:00:14]}  c3 {[%clk 0:00:05]} 34. Rc7 {[%clk 0:00:13]}  Bb4 {[%clk 0:00:04]} 35. Rc4 {[%clk 0:00:13]}  Rb6 {[%clk 0:00:04]} 36. Bf5 {[%clk 0:00:12]}  Kf7 {[%clk 0:00:04]} 37. Kg2 {[%clk 0:00:12]}  g6 {[%clk 0:00:04]} 38. Be4 {[%clk 0:00:12]}  Kf6 {[%clk 0:00:04]} 39. Kf3 {[%clk 0:00:12]}  Ba5 {[%clk 0:00:05]} 40. h3 {[%clk 0:00:10]}  Bb4 {[%clk 0:00:04]} 41. Ke2 {[%clk 0:00:10]}  h5 {[%clk 0:00:04]} 42. g4 {[%clk 0:00:09]}  h4 {[%clk 0:00:02]} 43. Rc8 {[%clk 0:00:09]}  Ba5 {[%clk 0:00:02]} 44. Rg8 {[%clk 0:00:09]}  Rb2+ {[%clk 0:00:02]} 45. Kf3 {[%clk 0:00:09]}  Ke5 {[%clk 0:00:03]} 46. Rxg6 {[%clk 0:00:08]}  Bb4 {[%clk 0:00:03]} 47. Rxg5+ {[%clk 0:00:08]}  Kd6 {[%clk 0:00:04]} 48. Rd5+ {[%clk 0:00:08]}  Ke6 {[%clk 0:00:04]} 49. Rd8 {[%clk 0:00:08]}  Bc5 {[%clk 0:00:03]} 50. Rc8 {[%clk 0:00:08]}  Kd6 {[%clk 0:00:04]} 51. Rc6+ {[%clk 0:00:08]}  Kd7 {[%clk 0:00:03]} 52. Rxc5 {[%clk 0:00:09]} 1-0


[Site "https://www.chess.com"]

[Event "Titled Tuesday Blitz November 01 Early 2022"]
[White "Grot, Blazej"]
[Black "Vlassov, Nikolai"]
[WhiteFideId "21835845"]
[BlackFideId "4103360"]
[WhiteElo "1739"]
[BlackElo "2324"]
[Result "0-1"]
[Round "03"]
[TimeControl "180+1"]
[Date "2022.11.02"]
[WhiteClock "0:01:50"]
[BlackClock "0:02:10"]

1. e4 {[%clk 0:03:00]}  Nc6 {[%clk 0:02:59]} 2. Nf3 {[%clk 0:02:59]}  d5 {[%clk 0:02:59]} 3. exd5 {[%clk 0:02:56]}  Qxd5 {[%clk 0:03:00]} 4. Nc3 {[%clk 0:02:56]}  Qa5 {[%clk 0:03:00]} 5. d4 {[%clk 0:02:56]}  Bg4 {[%clk 0:03:00]} 6. Bd2 {[%clk 0:02:56]}  O-O-O {[%clk 0:03:00]} 7. d5 {[%clk 0:02:52]}  Bxf3 {[%clk 0:02:54]} 8. Qxf3 {[%clk 0:02:50]}  Nb4 {[%clk 0:02:55]} 9. Bd3 {[%clk 0:02:41]}  Nf6 {[%clk 0:02:48]} 10. Be4 {[%clk 0:02:36]}  Nxe4 {[%clk 0:02:45]} 11. Qxe4 {[%clk 0:02:36]}  Nxd5 {[%clk 0:02:33]} 12. Nxd5 {[%clk 0:02:23]}  Qxd5 {[%clk 0:02:32]} 13. Qxd5 {[%clk 0:02:23]}  Rxd5 {[%clk 0:02:32]} 14. Be3 {[%clk 0:02:23]}  e6 {[%clk 0:02:31]} 15. Ke2 {[%clk 0:02:23]}  Bc5 {[%clk 0:02:29]} 16. c4 {[%clk 0:02:19]}  Re5 {[%clk 0:02:29]} 17. Rad1 {[%clk 0:02:15]}  Bxe3 {[%clk 0:02:29]} 18. fxe3 {[%clk 0:02:16]}  Rd8 {[%clk 0:02:30]} 19. Rxd8+ {[%clk 0:02:14]}  Kxd8 {[%clk 0:02:30]} 20. b3 {[%clk 0:02:15]}  Ke7 {[%clk 0:02:30]} 21. Rf1 {[%clk 0:02:14]}  Rh5 {[%clk 0:02:28]} 22. h3 {[%clk 0:02:13]}  Rg5 {[%clk 0:02:29]} 23. Rf2 {[%clk 0:02:12]}  a6 {[%clk 0:02:23]} 24. Kd3 {[%clk 0:02:12]}  h5 {[%clk 0:02:21]} 25. Rc2 {[%clk 0:02:09]}  h4 {[%clk 0:02:20]} 26. Ke4 {[%clk 0:02:09]}  Rg3 {[%clk 0:02:19]} 27. Kf4 {[%clk 0:02:08]}  g5+ {[%clk 0:02:18]} 28. Ke4 {[%clk 0:02:08]}  f5+ {[%clk 0:02:16]} 29. Kd3 {[%clk 0:02:07]}  f4 {[%clk 0:02:16]} 30. a4 {[%clk 0:01:59]}  Rxe3+ {[%clk 0:02:14]} 31. Kd2 {[%clk 0:01:58]}  Rg3 {[%clk 0:02:13]} 32. Kc1 {[%clk 0:01:58]}  f3 {[%clk 0:02:13]} 33. gxf3 {[%clk 0:01:58]}  Rxf3 {[%clk 0:02:13]} 34. Rh2 {[%clk 0:01:58]}  Rxb3 {[%clk 0:02:12]} 35. Kc2 {[%clk 0:01:58]}  Rb4 {[%clk 0:02:13]} 36. Kc3 {[%clk 0:01:58]}  Rxa4 {[%clk 0:02:13]} 37. Kb3 {[%clk 0:01:58]}  b5 {[%clk 0:02:13]} 38. cxb5 {[%clk 0:01:57]}  axb5 {[%clk 0:02:14]} 39. Rc2 {[%clk 0:01:56]}  Kd6 {[%clk 0:02:13]} 40. Rd2+ {[%clk 0:01:55]}  Kc5 {[%clk 0:02:12]} 41. Rc2+ {[%clk 0:01:55]}  Rc4 {[%clk 0:02:12]} 42. Rg2 {[%clk 0:01:55]}  g4 {[%clk 0:02:10]} 43. hxg4 {[%clk 0:01:54]}  h3 {[%clk 0:02:10]} 44. Rh2 {[%clk 0:01:53]}  Rxg4 {[%clk 0:02:10]} 45. Rxh3 {[%clk 0:01:54]}  e5 {[%clk 0:02:10]} 46. Rh5 {[%clk 0:01:54]}  Rg3+ {[%clk 0:02:10]} 47. Kc2 {[%clk 0:01:53]}  Kd4 {[%clk 0:02:10]} 48. Rh4+ {[%clk 0:01:53]}  e4 {[%clk 0:02:10]} 49. Rh7 {[%clk 0:01:52]}  c5 {[%clk 0:02:10]} 50. Rd7+ {[%clk 0:01:53]}  Kc4 {[%clk 0:02:10]} 51. Re7 {[%clk 0:01:52]}  Rg2+ {[%clk 0:02:10]} 52. Kd1 {[%clk 0:01:50]}  Kd3 {[%clk 0:02:10]} 53. Rd7+ {[%clk 0:01:50]}  Kc3 {[%clk 0:02:10]} 0-1


[Site "https://www.chess.com"]

[Event "Titled Tuesday Blitz November 01 Early 2022"]
[White "Grover, Sahaj"]
[Black "Manukian, Artak"]
[WhiteFideId "5021103"]
[BlackFideId "13301373"]
[WhiteElo "2432"]
[BlackElo "2462"]
[Result "1-0"]
[Round "03"]
[TimeControl "180+1"]
[Date "2022.11.02"]
[WhiteClock "0:01:55"]
[BlackClock "0:01:22"]

1. d4 {[%clk 0:03:00]}  Nf6 {[%clk 0:02:39]} 2. Bf4 {[%clk 0:02:59]}  d5 {[%clk 0:02:36]} 3. e3 {[%clk 0:03:00]}  Bg4 {[%clk 0:02:36]} 4. Qd3 {[%clk 0:03:00]}  c6 {[%clk 0:02:31]} 5. Qb3 {[%clk 0:03:00]}  Qb6 {[%clk 0:02:31]} 6. c4 {[%clk 0:03:01]}  e6 {[%clk 0:02:28]} 7. Nc3 {[%clk 0:03:01]}  Nbd7 {[%clk 0:02:28]} 8. c5 {[%clk 0:02:59]}  Qxb3 {[%clk 0:02:28]} 9. axb3 {[%clk 0:03:00]}  a6 {[%clk 0:02:28]} 10. b4 {[%clk 0:03:00]}  Rc8 {[%clk 0:02:28]} 11. h3 {[%clk 0:03:00]}  Bh5 {[%clk 0:02:28]} 12. g4 {[%clk 0:02:57]}  Bg6 {[%clk 0:02:26]} 13. Nf3 {[%clk 0:02:58]}  Be7 {[%clk 0:02:26]} 14. Nd2 {[%clk 0:02:57]}  O-O {[%clk 0:02:25]} 15. Nb3 {[%clk 0:02:56]}  Bd8 {[%clk 0:02:24]} 16. Na5 {[%clk 0:02:56]}  Bxa5 {[%clk 0:02:24]} 17. bxa5 {[%clk 0:02:55]}  Ne8 {[%clk 0:02:23]} 18. Kd2 {[%clk 0:02:48]}  Nc7 {[%clk 0:02:23]} 19. Bd6 {[%clk 0:02:45]}  Rfe8 {[%clk 0:02:21]} 20. f4 {[%clk 0:02:45]}  f6 {[%clk 0:02:20]} 21. h4 {[%clk 0:02:45]}  Nb5 {[%clk 0:02:17]} 22. Nxb5 {[%clk 0:02:44]}  cxb5 {[%clk 0:02:17]} 23. h5 {[%clk 0:02:43]}  Bf7 {[%clk 0:02:17]} 24. Bd3 {[%clk 0:02:43]}  Nb8 {[%clk 0:02:14]} 25. g5 {[%clk 0:02:31]}  f5 {[%clk 0:02:02]} 26. Rag1 {[%clk 0:02:22]}  g6 {[%clk 0:02:02]} 27. hxg6 {[%clk 0:02:21]}  Bxg6 {[%clk 0:02:01]} 28. b4 {[%clk 0:02:02]}  Nc6 {[%clk 0:02:01]} 29. Kc3 {[%clk 0:02:02]}  Nd8 {[%clk 0:01:59]} 30. Be5 {[%clk 0:02:00]}  Nf7 {[%clk 0:01:58]} 31. Bf6 {[%clk 0:02:01]}  Rc7 {[%clk 0:01:49]} 32. Be2 {[%clk 0:02:00]}  Nd8 {[%clk 0:01:45]} 33. Bh5 {[%clk 0:01:58]}  Bxh5 {[%clk 0:01:43]} 34. Rxh5 {[%clk 0:01:59]}  Rf8 {[%clk 0:01:35]} 35. Be5 {[%clk 0:01:57]}  Rff7 {[%clk 0:01:23]} 36. g6 {[%clk 0:01:55]}  hxg6 {[%clk 0:01:22]} 37. Rh8# {[%clk 0:01:55]} 1-0


[Site "https://www.chess.com"]